bitfinex-derivatives/quotes_ETHF0:USTF0_20250903
["timestamp","ask_amount","ask_price","bid_price","bid_amount"]
[1756890149538,0.5122,4318.0,4317.8,2.07679145]
[1756890149733,2.17159847,4317.9,4317.6,0.3496]
[1756890149937,0.2308,4317.3,4317.2,2.90819145]
[1756890150136,0.3674,4317.9,4317.3,0.3496]
[1756890150335,0.5982,4317.9,4317.8,4.0392]
[1756890150536,0.8265,4317.9,4317.8,4.0392]
[1756890150933,0.8265,4317.9,4317.8,3.6896]
[1756890151731,0.8265,4317.9,4317.8,4.0392]
[1756890152938,0.8265,4317.9,4317.8,3.6896]
[1756890153139,0.8265,4317.9,4317.8,3.4438]
[1756890153339,0.8265,4317.9,4317.8,0.236]
[1756890154240,0.8265,4317.9,4317.5,0.3496]
[1756890155538,0.8265,4317.9,4317.4,0.235]
[1756890155738,0.9713,4317.5,4317.4,0.235]
[1756890155938,0.9713,4317.5,4317.4,0.471]
[1756890156830,0.3674,4317.4,4317.3,3.2078]
[1756890157035,0.2308,4316.8,4316.7,2.90819145]
[1756890157243,0.5982,4316.8,4316.7,1.0664]
[1756890157633,0.4591,4316.8,4316.7,0.4818]
[1756890157839,0.4591,4316.8,4316.7,0.8314]
[1756890158041,0.8265,4316.8,4316.7,0.8314]
[1756890159439,0.8265,4316.8,4316.6,3.4428]
[1756890159639,0.8265,4316.7,4316.6,3.6788]
[1756890160447,0.8265,4316.7,4316.6,0.471]
[1756890160647,0.8265,4316.7,4316.6,0.235]
[1756890161949,0.5692,4317.2,4317.1,0.4683]
[1756890162145,0.5692,4317.2,4317.1,0.8306]
[1756890162351,0.8102,4317.2,4317.1,0.8306]
[1756890162550,0.8102,4317.2,4317.1,0.4683]
[1756890162847,0.8102,4317.2,4317.1,0.2289]
[1756890163650,0.8102,4317.2,4316.6,0.235]
[1756890163651,0.8102,4316.7,4316.6,0.8306]
[1756890163854,0.8102,4316.7,4316.6,0.4683]
[1756890164856,0.8102,4316.7,4316.3,0.3623]
[1756890165051,0.4924,4316.5,4316.4,0.2289]
[1756890165251,0.9584,4316.5,4316.4,0.2289]
[1756890166060,0.3442,4316.4,4316.1,0.3623]
[1756890166357,0.8102,4316.2,4316.1,0.8306]
[1756890167348,0.8102,4316.2,4316.0,3.2078]
[1756890167554,0.8102,4316.1,4316.0,3.2078]
[1756890167956,0.8102,4316.1,4316.0,3.4367]
[1756890168355,0.8102,4316.1,4316.0,3.799]
[1756890168855,0.8102,4316.1,4316.0,4.0384]
[1756890169056,0.5692,4316.1,4316.0,4.0384]
[1756890169255,0.5792,4316.9,4316.1,0.3623]
[1756890169461,1.0452,4316.9,4316.8,0.4683]
[1756890169659,0.8102,4316.5,4316.4,0.8306]
[1756890169859,0.3832,4317.0,4316.4,0.8306]
[1756890170062,0.5692,4316.5,4316.4,0.4683]
[1756890170564,0.5692,4316.5,4316.4,0.8306]
[1756890171964,0.8102,4316.5,4316.4,0.8306]
[1756890172964,0.5692,4316.5,4316.4,0.8306]
[1756890173459,0.466,4316.5,4316.0,3.2078]
[1756890173667,0.1482,4316.5,4316.0,4.0384]
[1756890173853,0.225,4316.5,4316.4,0.8306]
[1756890174058,0.235,4316.9,4316.5,0.3623]
[1756890174262,1.0452,4316.9,4316.8,0.2289]
[1756890174467,1.0452,4316.9,4316.8,0.5912]
[1756890175572,1.0452,4316.9,4316.8,0.2289]
[1756890176768,1.0452,4316.9,4316.5,0.3623]
[1756890176969,0.8102,4316.6,4316.5,0.5912]
[1756890177763,0.8102,4316.6,4316.5,0.2289]
[1756890179172,0.8102,4316.6,4316.5,0.5912]
[1756890179766,0.8102,4316.6,4316.5,0.8306]
[1756890184075,0.5792,4317.4,4316.9,0.4683]
[1756890184266,0.5692,4317.1,4317.0,0.8306]
[1756890184469,2.15529847,4317.1,4317.0,0.4683]
[1756890184669,2.15529847,4317.1,4317.0,0.2289]
[1756890184970,2.15529847,4317.1,4316.1,40.8]
[1756890184971,0.466,4316.6,4316.4,1.65811389]
[1756890185166,0.8102,4316.4,4316.3,0.4683]
[1756890185370,0.8102,4316.4,4316.3,0.8306]
[1756890188473,0.8102,4316.4,4316.3,0.2289]
[1756890188669,0.8102,4316.4,4316.2,0.235]
[1756890189575,0.8102,4316.4,4316.3,0.2289]
[1756890190766,0.8102,4316.4,4316.3,0.8306]
[1756890190972,0.5692,4316.4,4316.3,0.8306]
[1756890191474,1.72829847,4317.0,4316.4,0.3531]
[1756890191680,0.5724,4316.6,4316.5,2.48344745]
[1756890191881,0.1482,4317.0,4316.5,0.598]
[1756890192181,0.5724,4317.0,4316.9,0.8167]
[1756890192570,0.7974,4317.0,4316.9,0.8167]
[1756890193581,0.9409,4317.0,4316.9,0.8167]
[1756890195380,0.2189,4317.1,4317.0,0.9511]
[1756890195578,0.3637,4318.0,4317.9,0.2272]
[1756890195783,0.4439,4318.0,4317.9,0.8167]
[1756890196181,0.9409,4318.0,4317.9,0.8167]
[1756890196382,0.7974,4317.7,4317.6,0.4622]
[1756890196579,0.7974,4317.7,4317.6,0.8153]
[1756890197075,0.7974,4317.7,4317.6,1.0517]
[1756890198788,0.2189,4318.2,4318.1,0.4636]
[1756890198990,0.4439,4318.2,4318.1,0.8167]
[1756890199490,0.7974,4318.2,4318.1,0.8167]
[1756890200391,0.7974,4318.2,4318.1,0.4636]
[1756890200979,0.4439,4318.2,4317.6,3.4428]
[1756890201186,2.14249847,4318.0,4317.9,0.5803]
[1756890201385,2.14249847,4318.0,4317.9,0.8167]
[1756890201986,0.4439,4317.4,4317.3,41.035]
[1756890202183,0.7974,4317.4,4317.3,41.3881]
[1756890202692,0.7974,4317.4,4317.3,1.0517]
[1756890206994,3.2078,4318.2,4317.7,0.4636]
[1756890206995,0.3535,4318.1,4317.7,0.4636]
[1756890207191,3.2078,4318.2,4318.0,0.9511]
[1756890207394,3.2078,4318.2,4318.1,1.91865767]
[1756890207593,0.3785,4319.0,4318.2,0.3531]
[1756890207798,0.8224,4319.0,4318.9,0.2272]
[1756890208095,1.92435767,4319.0,4318.6,0.3531]
[1756890208296,0.4439,4318.7,4318.6,0.8167]
[1756890208490,0.7974,4318.7,4318.6,0.8167]
[1756890209492,1.89935767,4318.7,4318.6,0.8167]
[1756890209688,1.89935767,4318.7,4318.6,0.4636]
[1756890210596,0.7974,4318.7,4318.6,0.8167]
[1756890213792,0.7974,4318.7,4318.6,0.2272]
[1756890214191,0.7974,4318.7,4318.3,0.3531]
[1756890214499,4.30975767,4318.9,4318.1,3.435]
[1756890214500,0.7974,4318.2,4318.1,3.435]
[1756890214887,0.7974,4318.2,4318.1,3.2078]
[1756890215192,0.7974,4317.6,4317.5,1.0517]
[1756890217398,1.89935767,4317.6,4317.5,0.6986]
[1756890219603,1.89935767,4317.6,4317.5,0.2272]
[1756890220504,1.89935767,4317.6,4317.2,0.8167]
[1756890220505,0.7974,4317.3,4317.2,0.8167]
[1756890220705,0.7974,4317.3,4317.2,1.0517]
[1756890224409,0.7974,4317.3,4317.2,0.8167]
[1756890224610,0.7974,4317.3,4317.2,1.0517]
[1756890227308,0.2325,4317.0,4316.9,3.7846]
[1756890227520,2.01675767,4317.0,4316.9,3.4418]
[1756890227724,0.7838,4317.0,4316.9,4.0008]
[1756890229016,0.4632,4316.6,4316.5,2.07679145]
[1756890229221,1.88575767,4316.6,4316.1,2.07679145]
[1756890229519,1.88575767,4316.2,4316.1,41.593]
[1756890230019,1.88575767,4316.2,4316.1,0.793]
[1756890230717,1.88575767,4316.2,4315.8,3.2078]
[1756890230920,1.88575767,4315.9,4315.8,3.7846]
[1756890231120,1.88575767,4315.9,4315.8,3.4418]
[1756890231315,1.88575767,4315.9,4315.8,3.2078]
[1756890232423,0.2325,4315.2,4315.1,4.0008]
[1756890232619,0.7838,4315.2,4315.1,4.0008]
[1756890236325,0.5531,4315.2,4315.1,4.0008]
[1756890236732,0.131,4315.5,4315.1,3.658]
[1756890236920,0.2325,4315.5,4315.4,0.4502]
[1756890237120,0.5531,4315.5,4315.4,0.793]
[1756890241935,1.42255767,4315.6,4315.4,0.4502]
[1756890242132,1.10195767,4315.6,4315.5,0.3428]
[1756890242334,1.65505767,4315.6,4315.5,0.793]
[1756890242527,1.88575767,4315.6,4315.5,0.793]
[1756890243130,0.131,4316.0,4315.5,0.793]
[1756890243330,0.5531,4315.9,4315.8,0.793]
[1756890243530,4.30975767,4316.1,4315.8,0.4502]
[1756890243726,0.3206,4316.0,4315.9,0.793]
[1756890243924,4.63035767,4316.1,4316.0,0.3428]
[1756890244139,4.86285767,4316.1,4316.0,0.793]
[1756890244633,5.09355767,4316.1,4316.0,0.793]
[1756890245934,3.2078,4316.1,4316.0,2.03215767]
[1756890246443,0.4516,4317.0,4316.7,0.234]
[1756890246734,0.5531,4316.9,4316.8,0.793]
[1756890247125,1.10195767,4317.1,4316.9,0.3428]
[1756890247335,0.7838,4317.0,4316.9,0.793]
[1756890248733,0.5531,4317.0,4316.9,0.793]
[1756890249039,0.7838,4317.0,4316.9,0.793]
[1756890249541,0.9148,4317.0,4316.6,0.235]
[1756890249838,1.88575767,4316.7,4316.6,1.028]
[1756890254946,0.7895,4317.2,4317.1,0.4476]
[1756890255243,0.7895,4317.2,4317.1,0.7886]
[1756890260337,0.1399,4317.0,4316.9,0.235]
[1756890260541,2.03135767,4317.0,4316.9,0.4636]
[1756890260737,2.03135767,4317.0,4316.7,0.341]
[1756890260738,2.03135767,4317.0,4316.5,3.2078]
[1756890260945,1.89145767,4316.6,4316.5,3.2078]
[1756890261249,0.9294,4316.5,4316.4,0.2286]
[1756890263647,0.9294,4316.5,4316.4,0.5696]
[1756890267752,0.9294,4316.5,4316.4,0.7886]
[1756890274556,0.7895,4316.5,4316.4,0.7886]
[1756890275263,0.7895,4316.5,4316.4,2.86539145]
[1756890276262,0.7895,4316.5,4316.4,0.7886]
[1756890276658,0.9294,4316.5,4316.4,2.87295283]
[1756890277160,0.9294,4316.5,4316.4,3.10795283]
[1756890278960,0.9294,4316.5,4316.4,2.76695283]
[1756890279161,0.9294,4316.5,4316.4,2.54795283]
[1756890279564,0.9294,4316.5,4316.4,2.31295283]
[1756890281066,0.9294,4316.5,4316.4,2.65395283]
[1756890281967,0.9294,4316.5,4316.4,2.31295283]
[1756890282165,0.9294,4316.5,4316.4,2.87225283]
[1756890283266,0.9294,4316.5,4316.4,0.7879]
[1756890283661,0.9294,4316.5,4316.3,2.08435283]
[1756890283869,0.3359,4316.4,4316.3,2.32005283]
[1756890284066,0.7732,4316.4,4316.3,2.87935283]
[1756890284567,0.557,4316.9,4316.8,0.4654]
[1756890284768,1.00486001,4316.9,4316.8,0.795]
[1756890284967,0.7732,4316.9,4316.8,0.795]
[1756890285462,0.7732,4316.9,4316.8,0.4654]
[1756890285869,0.7732,4316.9,4316.8,0.2357]
[1756890286968,0.7732,4316.9,4316.8,0.5653]
[1756890287571,0.7732,4316.9,4316.8,0.2357]
[1756890288069,0.7732,4316.9,4316.8,0.5653]
[1756890288273,0.7732,4316.9,4316.8,0.795]
[1756890289068,0.7732,4316.9,4316.8,0.4654]
[1756890289274,0.7732,4316.9,4316.8,0.2357]
[1756890290774,3.981,4316.9,4316.8,0.795]
[1756890297370,3.981,4316.9,4316.8,0.2357]
[1756890298080,3.981,4316.9,4316.8,0.5653]
[1756890298474,3.981,4316.9,4316.7,0.235]
[1756890299181,3.6451,4316.9,4316.8,0.2357]
[1756890299679,3.981,4316.9,4316.8,0.5653]
[1756890300284,3.981,4316.9,4316.8,0.2357]
[1756890300481,3.981,4316.9,4316.7,0.235]
[1756890300679,0.1361,4316.5,4316.4,2.08435283]
[1756890300875,0.9093,4316.5,4316.4,2.32005283]
[1756890301185,0.9093,4316.5,4316.4,2.08435283]
[1756890301479,0.3359,4316.4,4316.3,2.08435283]
[1756890301682,1.78373009,4316.4,4316.0,2.08435283]
[1756890301883,0.7732,4316.1,4316.0,2.08435283]
[1756890302085,0.7732,4316.1,4316.0,2.32005283]
[1756890302386,0.7732,4316.1,4316.0,0.2357]
[1756890302685,0.7732,4316.1,4316.0,0.5653]
[1756890304584,0.7732,4316.1,4316.0,0.2357]
[1756890304786,0.5734,4316.0,4315.9,2.08435283]
[1756890304986,0.9093,4316.0,4315.9,2.08435283]
[1756890305181,0.3359,4315.9,4315.8,2.31935283]
[1756890305489,0.7732,4315.9,4315.8,1.03]
[1756890307292,0.7732,4315.9,4315.8,3.11312501]
[1756890308994,0.7732,4315.9,4315.8,2.78352501]
[1756890309291,0.7732,4315.9,4315.8,2.55382501]
[1756890309495,0.7732,4315.8,4315.3,2.89885647]
[1756890309694,0.9093,4315.0,4314.9,0.56530001]
[1756890309989,0.9093,4315.0,4314.9,41.36530001]
[1756890310196,0.9093,4315.0,4314.9,41.3653]
[1756890310390,0.9093,4315.0,4314.9,41.0357]
[1756890310590,0.9093,4315.0,4314.9,0.5653]
[1756890311494,0.9093,4315.0,4314.8,0.235]
[1756890312296,0.9093,4315.0,4314.9,0.2301]
[1756890312496,0.9093,4315.0,4314.8,0.235]
[1756890312691,0.9093,4315.0,4314.9,0.2301]
[1756890313086,0.3405,4314.9,4314.7,0.3422]
[1756890313292,0.7988,4314.9,4314.8,0.2301]
[1756890314496,0.7988,4314.9,4314.8,0.8029]
[1756890314992,3.9011,4315.4,4315.3,0.4607]
[1756890315200,3.9011,4315.4,4315.3,0.8029]
[1756890315398,3.9011,4315.4,4314.5,44.135]
[1756890315399,0.4583,4314.6,4314.5,41.1422]
[1756890315592,0.7988,4314.6,4314.5,41.1422]
[1756890315799,0.573,4314.6,4314.5,0.8029]
[1756890316803,0.7988,4314.6,4314.5,0.8029]
[1756890316996,0.7988,4314.6,4314.5,0.4607]
[1756890317196,0.7988,4314.6,4314.5,0.2301]
[1756890317802,0.4583,4314.1,4314.0,3.6729]
[1756890318002,0.7988,4314.1,4314.0,4.2457]
[1756890318198,0.573,4314.1,4314.0,4.2457]
[1756890318399,0.3405,4314.4,4314.0,4.0307]
[1756890318594,0.9315,4314.5,4314.4,0.8029]
[1756890320203,0.9315,4314.5,4314.4,0.4607]
[1756890320607,0.9315,4314.5,4314.4,0.8029]
[1756890322306,0.9315,4314.5,4314.0,0.5772]
[1756890322503,0.3405,4314.4,4314.1,0.3422]
[1756890322704,0.7988,4314.2,4314.1,0.8029]
[1756890324415,0.3405,4314.7,4314.1,0.4607]
[1756890324607,0.573,4314.3,4314.2,0.8029]
[1756890325502,0.7988,4314.3,4314.2,0.8029]
[1756890327017,0.7988,4314.3,4314.2,0.2301]
[1756890327212,0.7988,4314.3,4314.2,0.8029]
[1756890327405,1.90235778,4314.3,4314.2,0.8029]
[1756890327610,0.7988,4314.3,4314.2,0.8029]
[1756890332415,0.573,4314.3,4314.2,0.8029]
[1756890332630,0.7988,4314.3,4314.2,0.4607]
[1756890332919,0.7988,4314.3,4314.2,0.2301]
[1756890333616,0.7988,4314.3,4314.2,0.5723]
[1756890334521,0.7988,4314.3,4314.2,0.2301]
[1756890335218,0.7988,4314.3,4314.2,0.5723]
[1756890335723,0.7988,4314.3,4314.2,0.2301]
[1756890337124,0.7988,4314.3,4314.2,0.8029]
[1756890337917,4.0066,4314.8,4314.7,0.2301]
[1756890338120,4.0066,4314.8,4314.7,0.5723]
[1756890339628,4.0066,4314.8,4314.7,0.2301]
[1756890340023,4.0066,4314.8,4314.4,0.3422]
[1756890340223,1.10355778,4314.6,4314.5,0.2301]
[1756890340524,0.7988,4314.6,4314.5,0.8029]
[1756890351937,0.7988,4314.6,4314.2,1.10355778]
[1756890352236,4.31135778,4314.8,4314.1,3.09217781]
[1756890352237,0.7802,4314.2,4314.1,3.09217781]
[1756890352431,0.7802,4314.2,4314.1,1.0164]
[1756890353633,0.5482,4314.2,4314.1,1.0164]
[1756890354033,0.3186,4314.2,4314.1,1.0164]
[1756890354633,0.1368,4314.5,4314.2,0.3349]
[1756890354833,0.5984,4314.5,4314.4,0.7814]
[1756890355335,0.917,4314.5,4314.4,0.7814]
[1756890356243,0.917,4314.5,4314.4,0.2268]
[1756890356630,2.02055778,4314.5,4314.4,0.2268]
[1756890357134,2.02055778,4314.5,4314.1,0.5699]
[1756890357328,0.3186,4314.4,4314.3,0.2268]
[1756890357731,0.3186,4314.4,4314.3,0.5617]
[1756890358031,0.7802,4314.4,4314.3,0.5617]
[1756890358234,0.7802,4314.4,4314.3,0.2268]
[1756890358839,0.7802,4314.4,4314.1,0.235]
[1756890359336,0.7802,4314.4,4314.2,0.3349]
[1756890359637,0.7802,4314.4,4314.3,0.2268]
[1756890359836,0.7802,4314.4,4314.3,0.5617]
[1756890360134,0.4616,4314.4,4314.1,0.3349]
[1756890360335,0.7802,4314.1,4314.0,0.5617]
[1756890360537,0.7802,4314.1,4314.0,0.2268]
[1756890361132,0.917,4314.0,4313.9,2.07577781]
[1756890361336,0.917,4313.5,4313.4,4.97463428]
[1756890361635,3.2078,4313.6,4313.4,0.4465]
[1756890361842,3.2078,4314.1,4313.6,0.3349]
[1756890362133,3.2078,4314.1,4314.0,0.9193]
[1756890362334,3.2078,4314.1,4314.0,0.7814]
[1756890362335,3.988,4314.1,4314.0,0.7814]
[1756890362532,3.988,4314.1,4314.0,0.2268]
[1756890363033,3.988,4314.1,4313.8,0.235]
[1756890363242,0.7802,4313.9,4313.8,0.4618]
[1756890363938,0.7802,4313.9,4313.8,0.7967]
[1756890364439,0.7802,4313.9,4313.8,0.4618]
[1756890365437,1.88375778,4313.9,4313.8,0.235]
[1756890365634,1.56515778,4313.9,4313.3,42.87577781]
[1756890365836,0.1368,4314.0,4313.1,2.07577781]
[1756890365837,0.4616,4313.4,4313.1,2.07577781]
[1756890366035,0.1368,4313.0,4312.9,0.4618]
[1756890366244,0.917,4313.0,4312.9,41.5967]
[1756890367244,0.917,4313.0,4312.9,0.2268]
[1756890367543,0.5482,4313.0,4312.9,0.7814]
[1756890367743,0.7802,4313.3,4313.2,0.7814]
[1756890368838,0.7802,4313.3,4312.9,0.3349]
[1756890369040,0.917,4313.0,4312.9,0.5617]
[1756890369342,0.917,4313.0,4312.8,41.21121758]
[1756890369343,0.3186,4312.9,4312.8,41.21121758]
[1756890370241,1.88375778,4312.9,4312.8,0.41121758]
[1756890371243,0.7802,4312.9,4312.8,0.41121758]
[1756890371542,1.88375778,4312.9,4312.8,0.41121758]
[1756890372238,2.35062779,4312.9,4312.1,0.3233]
[1756890372442,2.35062779,4312.9,4312.1,0.548]
[1756890372443,0.7468,4312.2,4312.1,0.548]
[1756890372633,0.7468,4312.2,4312.1,0.2247]
[1756890372831,0.7468,4312.2,4311.9,0.235]
[1756890372832,0.1272,4312.0,4311.9,0.4597]
[1756890373039,0.874,4312.0,4311.9,0.4597]
[1756890373431,0.874,4312.0,4311.9,0.235]
[1756890374442,0.874,4312.0,4311.9,0.4597]
[1756890375242,0.874,4312.0,4311.5,0.235]
[1756890375440,0.7468,4311.6,4311.5,0.9919]
[1756890377950,0.7468,4311.6,4311.5,0.4597]
[1756890378151,1.85035778,4311.6,4311.5,0.4597]
[1756890379152,1.85035778,4311.6,4311.5,0.2247]
[1756890379153,0.7468,4311.6,4311.5,0.2247]
[1756890380251,0.7468,4311.2,4311.1,0.783]
[1756890380444,0.7468,4311.2,4311.1,0.9919]
[1756890380650,0.532,4311.2,4311.1,41.7919]
[1756890385062,0.532,4311.2,4311.1,0.9919]
[1756890388451,3.2078,4311.9,4311.1,0.9919]
[1756890388452,0.3197,4311.4,4311.1,0.6686]
[1756890388659,0.532,4311.4,4311.3,0.4336]
[1756890388864,0.7468,4311.4,4311.3,0.7569]
[1756890390159,0.7468,4311.4,4311.3,0.15182]
[1756890390360,0.41747,4311.2,4311.1,0.235]
[1756890390559,1.16427,4311.2,4311.1,0.235]
[1756890393765,0.3197,4311.1,4311.0,40.8]
[1756890393968,0.3197,4311.1,4311.0,41.035]
[1756890394161,0.7468,4311.1,4311.0,0.235]
[1756890401089,0.1272,4311.5,4311.0,5.81671588]
[1756890401386,0.874,4311.5,4311.4,3.2078]
[1756890401677,0.874,4311.5,4311.4,40.8]
[1756890402077,0.874,4311.5,4311.3,0.235]
[1756890404576,0.1306,4311.0,4310.9,3.2078]
[1756890404781,0.8818,4311.0,4310.9,3.4428]
[1756890405286,0.8818,4311.0,4310.9,44.2428]
[1756890405487,0.8818,4311.0,4310.9,3.4428]
[1756890405981,0.8818,4311.0,4310.9,44.2428]
[1756890406687,0.8818,4311.0,4310.9,41.035]
[1756890408680,0.664,4311.0,4310.9,41.035]
[1756890410087,0.664,4311.0,4310.9,40.8]
[1756890410296,0.664,4311.0,4310.9,41.035]
[1756890412088,0.664,4311.0,4310.9,0.235]
[1756890412684,0.8818,4311.0,4310.9,0.235]
[1756890418494,0.664,4311.0,4310.9,0.235]
[1756890418792,3.6567,4311.5,4310.9,4.46697]
[1756890418982,0.4489,4311.5,4311.4,1.34975588]
[1756890419188,0.7512,4311.4,4311.3,2.08607713]
[1756890419387,0.7512,4311.4,4311.3,0.235]
[1756890423790,0.5334,4311.4,4311.3,0.235]
[1756890424294,3.335,4312.0,4311.3,0.235]
[1756890424295,0.3217,4311.7,4311.3,0.235]
[1756890424493,3.5467,4312.0,4311.6,1.34975588]
[1756890424697,3.5467,4312.0,4311.7,0.235]
[1756890424894,0.3217,4311.9,4311.7,0.235]
[1756890425096,0.3217,4311.9,4311.8,40.8]
[1756890425597,0.3217,4311.9,4311.8,41.03192]
[1756890425796,0.3217,4311.9,4311.8,42.88607713]
[1756890425991,0.4489,4312.0,4311.8,42.88607713]
[1756890426198,0.4489,4312.0,4311.9,1.58475588]
[1756890426394,0.4489,4312.5,4311.9,1.81667588]
[1756890426586,0.1272,4312.5,4312.4,1.34975588]
[1756890426792,0.1272,4312.5,4312.4,42.38475588]
[1756890427096,0.3217,4312.9,4312.4,42.38475588]
[1756890427293,0.3217,4312.9,4312.7,1.34975588]
[1756890427493,0.5334,4312.9,4312.8,0.235]
[1756890428098,0.5334,4312.9,4312.8,41.035]
[1756890428595,0.3217,4312.9,4312.8,41.035]
[1756890428896,0.3217,4312.9,4312.8,44.2428]
[1756890430590,0.1306,4313.0,4312.8,44.2428]
[1756890430799,3.3384,4313.5,4312.8,44.2428]
[1756890430800,0.3217,4313.4,4312.8,44.2428]
[1756890431095,0.3217,4313.4,4313.3,1.34975588]
[1756890431300,0.3217,4313.4,4313.3,1.58475588]
[1756890431695,0.3217,4313.4,4313.3,42.38475588]
[1756890432097,0.3259,4313.7,4313.3,45.59255588]
[1756890432296,0.3259,4313.7,4313.6,1.34975588]
[1756890432495,0.3259,4313.7,4313.6,1.58475588]
[1756890433900,0.1306,4314.0,4313.6,1.58475588]
[1756890434094,0.6613,4314.0,4313.9,3.2078]
[1756890434295,0.6613,4314.0,4313.9,3.4428]
[1756890434901,0.6613,4314.0,4313.9,4.79255588]
[1756890435101,0.6613,4314.0,4313.3,40.8]
[1756890435102,0.5344,4313.5,4313.4,3.2078]
[1756890435301,0.8603,4313.5,4313.4,3.4428]
[1756890435798,0.448,4313.5,4313.4,3.4428]
[1756890436601,0.6528,4313.5,4313.4,3.4428]
[1756890437900,0.448,4313.5,4313.4,3.4428]
[1756890438105,0.3259,4313.9,4313.4,3.4428]
[1756890438305,0.3259,4313.9,4313.7,1.34975588]
[1756890438511,0.5307,4313.9,4313.8,0.235]
[1756890438808,0.7382,4313.9,4313.8,0.235]
[1756890440211,0.5307,4313.9,4313.8,0.235]
[1756890440404,0.3259,4313.9,4313.8,0.235]
[1756890441015,0.5307,4313.9,4313.8,0.235]
[1756890445213,0.3259,4313.9,4313.8,0.235]
[1756890446415,0.5307,4313.9,4313.8,0.235]
[1756890446816,0.7382,4313.9,4313.8,0.235]
[1756890449517,0.7382,4313.9,4313.8,1.3384624]
[1756890451217,0.3259,4313.9,4313.8,6.6544624]
[1756890452621,0.5307,4313.9,4313.8,6.6544624]
[1756890454215,0.7382,4313.9,4313.8,6.6544624]
[1756890455117,0.5307,4313.9,4313.8,6.6544624]
[1756890455420,0.3259,4313.9,4313.8,6.6544624]
[1756890458122,0.3259,4313.9,4313.8,8.74053953]
[1756890458722,0.4565,4314.0,4313.8,8.74053953]
[1756890458915,0.4565,4314.0,4313.9,3.2078]
[1756890459217,3.2078,4314.8,4313.9,3.2078]
[1756890459419,0.1306,4315.0,4314.4,4.3112624]
[1756890459420,0.4565,4314.5,4314.4,4.3112624]
[1756890459722,0.4565,4314.5,4314.4,4.5462624]
[1756890460122,0.4565,4314.5,4314.4,45.3462624]
[1756890461117,0.1306,4315.0,4314.4,45.3462624]
[1756890461317,0.6613,4315.0,4314.9,1.1034624]
[1756890461620,0.6613,4315.0,4314.9,1.3384624]
[1756890462017,0.8688,4315.0,4314.9,42.1384624]
[1756890462821,0.3259,4315.0,4314.9,45.3462624]
[1756890463020,0.3277,4315.4,4314.9,45.53470529]
[1756890463221,0.1221,4316.0,4315.4,3.2078]
[1756890463420,0.4498,4316.0,4315.9,4.3112624]
[1756890463621,0.88,4316.0,4315.9,4.5462624]
[1756890464117,0.88,4316.0,4315.9,45.3462624]
[1756890465125,0.88,4316.0,4315.9,44.2428]
[1756890467718,0.88,4316.0,4315.9,44.2428]
[1756890468428,0.88,4316.0,4315.9,40.8]
[1756890468429,6.21516241,4316.0,4315.9,40.8]
[1756890468628,0.1264,4315.0,4314.9,4.3112624]
[1756890468923,0.8843,4315.0,4314.9,4.5462624]
[1756890469129,0.8843,4315.0,4314.9,45.3462624]
[1756890470930,0.8843,4315.0,4314.9,44.2428]
[1756890471126,0.8843,4315.0,4314.9,45.1112624]
[1756890471440,0.8843,4315.0,4314.9,45.3462624]
[1756890472026,0.6632,4315.0,4314.9,45.3462624]
[1756890475731,0.1264,4315.5,4314.9,45.3462624]
[1756890475933,0.4541,4315.5,4315.4,1.1034624]
[1756890476135,0.6632,4315.5,4315.4,1.3374624]
[1756890476632,0.8843,4315.5,4315.4,1.3374624]
[1756890483639,0.1264,4315.0,4314.9,49.3238]
[1756890483943,0.4541,4315.0,4314.9,49.5578]
[1756890485943,0.4541,4315.0,4314.9,44.2418]
[1756890486144,0.1264,4315.5,4314.9,44.2418]
[1756890486350,0.1264,4315.5,4315.4,1.1034624]
[1756890486551,0.1264,4315.5,4315.4,1.3374624]
[1756890486954,0.4541,4315.5,4315.4,1.3374624]
[1756890487748,0.3277,4315.9,4315.4,1.3374624]
[1756890487947,0.4541,4315.5,4315.4,0.234]
[1756890489049,0.8843,4315.5,4315.4,1.3374624]
[1756890489550,0.7579,4315.2,4315.1,1.1034624]
[1756890489850,0.3277,4315.1,4315.0,5.316]
[1756890490051,0.7579,4315.1,4315.0,5.55]
[1756890491752,0.7579,4315.1,4315.0,0.234]
[1756890496254,0.7579,4315.1,4315.0,2.32007713]
[1756890497358,0.7579,4315.1,4315.0,0.234]
[1756890498657,0.4189,4315.0,4314.9,44.0078]
[1756890498859,0.4189,4315.0,4314.9,44.2418]
[1756890499958,0.4189,4315.0,4314.9,45.3452624]
[1756890500361,0.1264,4315.5,4314.9,49.57701239]
[1756890500658,0.1264,4315.5,4315.4,1.1034624]
[1756890500659,0.4223,4315.5,4315.4,1.1034624]
[1756890500853,0.1221,4316.0,4315.4,4.5452624]
[1756890501056,0.418,4316.0,4315.9,3.18669257]
[1756890501248,0.418,4316.0,4315.9,44.22069257]
[1756890502056,0.418,4316.0,4315.9,42.1374624]
[1756890510666,0.123,4317.0,4315.9,42.1374624]
[1756890510867,0.23174,4316.2,4315.9,43.11723017]
[1756890511163,0.52764,4316.2,4316.1,1.1034624]
[1756890511360,0.2959,4316.2,4316.1,1.3374624]
[1756890511561,0.2959,4316.2,4316.1,1.58019988]
[1756890517666,0.5025,4316.2,4316.1,1.58019988]
[1756890518967,0.7154,4316.2,4316.1,0.234]
[1756890519568,0.4189,4316.0,4315.9,42.14619988]
[1756890519766,0.4189,4316.0,4315.9,42.38019988]
[1756890522268,0.4189,4316.0,4315.9,41.034]